[Event "Titled Tuesday Blitz May 10 Early 2022"]
[White "Stribuk, Artiom"]
[Black "Stoleriu, George"]
[WhiteFideId "13515659"]
[BlackFideId "1227505"]
[WhiteElo "2259"]
[BlackElo "2194"]
[Result "1-0"]
[Round "11"]
[TimeControl "180+1"]
[Date "2022.05.10"]
[WhiteClock "0:00:24"]
[BlackClock "0:00:09"]

1. d4 {[%clk 0:02:58]}  e6 {[%clk 0:03:00]} 2. c4 {[%clk 0:02:58]}  Nf6 {[%clk 0:02:58]} 3. Nc3 {[%clk 0:02:58]}  Bb4 {[%clk 0:02:59]} 4. Qc2 {[%clk 0:02:57]}  O-O {[%clk 0:02:55]} 5. e4 {[%clk 0:02:57]}  d5 {[%clk 0:02:37]} 6. e5 {[%clk 0:02:57]}  Ne4 {[%clk 0:02:38]} 7. Bd3 {[%clk 0:02:57]}  c5 {[%clk 0:02:39]} 8. Nf3 {[%clk 0:02:57]}  cxd4 {[%clk 0:02:39]} 9. Nxd4 {[%clk 0:02:58]}  Nd7 {[%clk 0:02:39]} 10. Bf4 {[%clk 0:02:57]}  Qh4 {[%clk 0:02:35]} 11. g3 {[%clk 0:02:57]}  Qh5 {[%clk 0:02:35]} 12. O-O {[%clk 0:02:51]}  g5 {[%clk 0:02:29]} 13. cxd5 {[%clk 0:02:50]}  Bxc3 {[%clk 0:02:26]} 14. bxc3 {[%clk 0:02:50]}  exd5 {[%clk 0:02:27]} 15. Be3 {[%clk 0:02:11]}  Ndc5 {[%clk 0:02:12]} 16. Be2 {[%clk 0:02:04]}  Qg6 {[%clk 0:02:08]} 17. f3 {[%clk 0:02:01]}  Bh3 {[%clk 0:02:01]} 18. Rfe1 {[%clk 0:01:21]}  f6 {[%clk 0:01:50]} 19. fxe4 {[%clk 0:01:18]}  fxe5 {[%clk 0:01:49]} 20. Nf5 {[%clk 0:01:19]}  Bxf5 {[%clk 0:01:19]} 21. exf5 {[%clk 0:01:19]}  Qc6 {[%clk 0:01:17]} 22. Rf1 {[%clk 0:01:14]}  Rac8 {[%clk 0:01:07]} 23. Bf3 {[%clk 0:01:01]}  Rfd8 {[%clk 0:00:58]} 24. Bxg5 {[%clk 0:00:58]}  Rd7 {[%clk 0:00:56]} 25. f6 {[%clk 0:00:57]}  Ne6 {[%clk 0:00:53]} 26. Bd2 {[%clk 0:00:51]}  Qc5+ {[%clk 0:00:52]} 27. Kh1 {[%clk 0:00:50]}  d4 {[%clk 0:00:53]} 28. Bg4 {[%clk 0:00:50]}  Rc6 {[%clk 0:00:52]} 29. f7+ {[%clk 0:00:49]}  Rxf7 {[%clk 0:00:41]} 30. Rxf7 {[%clk 0:00:49]}  Kxf7 {[%clk 0:00:42]} 31. Qxh7+ {[%clk 0:00:49]}  Ke8 {[%clk 0:00:30]} 32. Rf1 {[%clk 0:00:49]}  Qd5+ {[%clk 0:00:12]} 33. Kg1 {[%clk 0:00:48]}  Rc7 {[%clk 0:00:12]} 34. Qg6+ {[%clk 0:00:25]}  Kd7 {[%clk 0:00:09]} 35. Bxe6+ {[%clk 0:00:24]}  Qxe6 {[%clk 0:00:09]} 36. Rf7+ {[%clk 0:00:24]}  Kd6 {[%clk 0:00:09]} 37. Rf6 {[%clk 0:00:24]} 1-0


[Site "https://www.chess.com"]

[Event "Titled Tuesday Blitz May 10 Early 2022"]
[White "Terry, Renato"]
[Black "Sjugirov, Sanan"]
[WhiteFideId "3803457"]
[BlackFideId "4189302"]
[WhiteElo "2577"]
[BlackElo "2602"]
[Result "1/2-1/2"]
[Round "11"]
[TimeControl "180+1"]
[Date "2022.05.10"]
[WhiteClock "0:00:49"]
[BlackClock "0:01:32"]

1. d4 {[%clk 0:03:00]}  Nf6 {[%clk 0:02:59]} 2. Bg5 {[%clk 0:03:01]}  d5 {[%clk 0:02:59]} 3. Bxf6 {[%clk 0:03:01]}  exf6 {[%clk 0:03:00]} 4. e3 {[%clk 0:03:01]}  Be6 {[%clk 0:03:00]} 5. Ne2 {[%clk 0:03:01]}  Bd6 {[%clk 0:02:58]} 6. g3 {[%clk 0:03:01]}  c6 {[%clk 0:02:53]} 7. Nd2 {[%clk 0:02:58]}  Nd7 {[%clk 0:02:51]} 8. Bg2 {[%clk 0:02:58]}  O-O {[%clk 0:02:44]} 9. c3 {[%clk 0:02:54]}  f5 {[%clk 0:02:41]} 10. O-O {[%clk 0:02:51]}  Nf6 {[%clk 0:02:41]} 11. Nf4 {[%clk 0:02:52]}  Qe7 {[%clk 0:02:36]} 12. Rc1 {[%clk 0:02:50]}  b5 {[%clk 0:02:33]} 13. a4 {[%clk 0:02:40]}  a6 {[%clk 0:02:33]} 14. Ra1 {[%clk 0:02:40]}  Ne4 {[%clk 0:02:30]} 15. Qc2 {[%clk 0:02:00]}  g5 {[%clk 0:02:19]} 16. Nxe6 {[%clk 0:01:57]}  fxe6 {[%clk 0:02:20]} 17. Nxe4 {[%clk 0:01:55]}  fxe4 {[%clk 0:02:17]} 18. f3 {[%clk 0:01:52]}  exf3 {[%clk 0:02:16]} 19. Rxf3 {[%clk 0:01:49]}  Rxf3 {[%clk 0:02:15]} 20. Bxf3 {[%clk 0:01:50]}  Rf8 {[%clk 0:02:16]} 21. Rf1 {[%clk 0:01:38]}  e5 {[%clk 0:02:16]} 22. axb5 {[%clk 0:01:38]}  axb5 {[%clk 0:02:16]} 23. Bg4 {[%clk 0:01:32]}  Rxf1+ {[%clk 0:02:10]} 24. Kxf1 {[%clk 0:01:33]}  exd4 {[%clk 0:01:57]} 25. exd4 {[%clk 0:01:33]}  b4 {[%clk 0:01:57]} 26. cxb4 {[%clk 0:01:27]}  Qf6+ {[%clk 0:01:50]} 27. Qf2 {[%clk 0:01:13]}  Qxf2+ {[%clk 0:01:31]} 28. Kxf2 {[%clk 0:01:14]}  Bxb4 {[%clk 0:01:32]} 29. Bd7 {[%clk 0:00:49]}  c5 {[%clk 0:01:32]} 1/2-1/2


[Site "https://www.chess.com"]

[Event "Titled Tuesday Blitz May 10 Early 2022"]
[White "Thomas, Anysia"]
[Black "Miszler, Levente"]
[WhiteFideId "670472"]
[BlackFideId "763276"]
[WhiteElo "2002"]
[BlackElo "1966"]
[Result "1/2-1/2"]
[Round "11"]
[TimeControl "180+1"]
[Date "2022.05.11"]
[WhiteClock "0:00:19"]
[BlackClock "0:01:57"]

1. d4 {[%clk 0:02:46]}  Nf6 {[%clk 0:02:55]} 2. c4 {[%clk 0:02:46]}  g6 {[%clk 0:02:53]} 3. Nc3 {[%clk 0:02:46]}  Bg7 {[%clk 0:02:53]} 4. e4 {[%clk 0:02:46]}  d6 {[%clk 0:02:53]} 5. Nf3 {[%clk 0:02:47]}  O-O {[%clk 0:02:53]} 6. h3 {[%clk 0:02:47]}  Nbd7 {[%clk 0:02:54]} 7. Be3 {[%clk 0:02:45]}  e5 {[%clk 0:02:55]} 8. d5 {[%clk 0:02:45]}  Nc5 {[%clk 0:02:54]} 9. Nd2 {[%clk 0:02:45]}  a5 {[%clk 0:02:53]} 10. g4 {[%clk 0:02:46]}  Ne8 {[%clk 0:02:52]} 11. h4 {[%clk 0:02:45]}  f5 {[%clk 0:02:52]} 12. exf5 {[%clk 0:02:42]}  gxf5 {[%clk 0:02:53]} 13. h5 {[%clk 0:02:41]}  f4 {[%clk 0:02:52]} 14. Bxc5 {[%clk 0:02:41]}  dxc5 {[%clk 0:02:52]} 15. Nde4 {[%clk 0:02:39]}  b6 {[%clk 0:02:45]} 16. f3 {[%clk 0:02:31]}  Nd6 {[%clk 0:02:44]} 17. Bd3 {[%clk 0:02:30]}  Bf6 {[%clk 0:02:39]} 18. Qe2 {[%clk 0:01:56]}  Kh8 {[%clk 0:02:35]} 19. O-O-O {[%clk 0:01:26]}  a4 {[%clk 0:02:35]} 20. Rdg1 {[%clk 0:01:25]}  Bg5 {[%clk 0:02:33]} 21. h6 {[%clk 0:01:18]}  Bd7 {[%clk 0:02:29]} 22. Rh5 {[%clk 0:01:17]}  Rg8 {[%clk 0:02:29]} 23. Nxg5 {[%clk 0:01:11]}  Rxg5 {[%clk 0:02:30]} 24. Ne4 {[%clk 0:01:07]}  Rxh5 {[%clk 0:02:26]} 25. gxh5 {[%clk 0:01:06]}  Nf5 {[%clk 0:02:22]} 26. Ng5 {[%clk 0:00:55]}  Qf6 {[%clk 0:02:19]} 27. Qxe5 {[%clk 0:00:47]}  Rf8 {[%clk 0:02:12]} 28. Qxc7 {[%clk 0:00:20]}  Qe7 {[%clk 0:02:02]} 29. Ne6 {[%clk 0:00:19]}  Bxe6 {[%clk 0:01:57]} 30. Qxe7 {[%clk 0:00:18]}  Nxe7 {[%clk 0:01:57]} 31. dxe6 {[%clk 0:00:19]}  Rf6 {[%clk 0:01:57]} 32. Rg7 {[%clk 0:00:18]}  Rxe6 {[%clk 0:01:57]} 33. Rxh7+ {[%clk 0:00:17]}  Kg8 {[%clk 0:01:57]} 34. Rg7+ {[%clk 0:00:18]}  Kh8 {[%clk 0:01:57]} 35. Rh7+ {[%clk 0:00:18]}  Kg8 {[%clk 0:01:57]} 36. Rg7+ {[%clk 0:00:18]}  Kh8 {[%clk 0:01:57]} 37. Rh7+ {[%clk 0:00:19]} 1/2-1/2


[Site "https://www.chess.com"]

[Event "Titled Tuesday Blitz May 10 Early 2022"]
[White "Toncheva, Nadya"]
[Black "De Souza, Cristiano Gomes"]
[WhiteFideId "2924056"]
[BlackFideId "2151758"]
[WhiteElo "1888"]
[BlackElo "2068"]
[Result "1-0"]
[Round "11"]
[TimeControl "180+1"]
[Date "2022.05.11"]
[WhiteClock "0:01:30"]
[BlackClock "0:01:23"]

1. e4 {[%clk 0:03:00]}  c5 {[%clk 0:02:54]} 2. Nc3 {[%clk 0:02:56]}  d6 {[%clk 0:02:51]} 3. f4 {[%clk 0:02:56]}  g6 {[%clk 0:02:48]} 4. Nf3 {[%clk 0:02:56]}  Bg7 {[%clk 0:02:48]} 5. Bc4 {[%clk 0:02:56]}  Nc6 {[%clk 0:02:48]} 6. d3 {[%clk 0:02:56]}  Nf6 {[%clk 0:02:48]} 7. O-O {[%clk 0:02:56]}  O-O {[%clk 0:02:47]} 8. Qe1 {[%clk 0:02:57]}  e6 {[%clk 0:02:47]} 9. Qh4 {[%clk 0:02:57]}  d5 {[%clk 0:02:47]} 10. Bb3 {[%clk 0:02:56]}  Nd4 {[%clk 0:02:46]} 11. f5 {[%clk 0:02:56]}  exf5 {[%clk 0:02:44]} 12. Bh6 {[%clk 0:02:52]}  Nxf3+ {[%clk 0:02:42]} 13. Rxf3 {[%clk 0:02:52]}  dxe4 {[%clk 0:02:43]} 14. Rh3 {[%clk 0:02:45]}  exd3 {[%clk 0:02:33]} 15. Bxg7 {[%clk 0:02:24]}  Kxg7 {[%clk 0:02:30]} 16. Qh6+ {[%clk 0:02:18]}  Kg8 {[%clk 0:02:29]} 17. Rxd3 {[%clk 0:02:07]}  Ng4 {[%clk 0:02:19]} 18. Bxf7+ {[%clk 0:01:57]}  Kh8 {[%clk 0:02:06]} 19. Rxd8 {[%clk 0:01:55]}  Nxh6 {[%clk 0:02:06]} 20. Rxf8+ {[%clk 0:01:55]}  Kg7 {[%clk 0:02:06]} 21. Re8 {[%clk 0:01:48]}  Kxf7 {[%clk 0:02:05]} 22. Rae1 {[%clk 0:01:47]}  Ng8 {[%clk 0:02:00]} 23. Nb5 {[%clk 0:01:44]}  Kg7 {[%clk 0:01:30]} 24. Nd6 {[%clk 0:01:39]}  Nf6 {[%clk 0:01:29]} 25. Rxc8 {[%clk 0:01:30]}  Rxc8 {[%clk 0:01:25]} 26. Nxc8 {[%clk 0:01:31]}  Ne4 {[%clk 0:01:23]} 27. Nxa7 {[%clk 0:01:30]} 1-0


[Site "https://www.chess.com"]

[Event "Titled Tuesday Blitz May 10 Early 2022"]
[White "Tristan, Leonardo"]
[Black "Lazavik, Denis"]
[WhiteFideId "113816"]
[BlackFideId "13515110"]
[WhiteElo "2404"]
[BlackElo "2437"]
[Result "0-1"]
[Round "11"]
[TimeControl "180+1"]
[Date "2022.05.10"]
[WhiteClock "0:00:04"]
[BlackClock "0:00:11"]

1. d4 {[%clk 0:03:00]}  f5 {[%clk 0:02:58]} 2. Nf3 {[%clk 0:03:00]}  Nf6 {[%clk 0:02:59]} 3. g3 {[%clk 0:03:01]}  g6 {[%clk 0:02:59]} 4. Bg2 {[%clk 0:03:01]}  Bg7 {[%clk 0:03:00]} 5. O-O {[%clk 0:03:02]}  O-O {[%clk 0:03:01]} 6. Nbd2 {[%clk 0:03:02]}  d6 {[%clk 0:02:48]} 7. Re1 {[%clk 0:03:02]}  Nc6 {[%clk 0:02:45]} 8. e4 {[%clk 0:03:02]}  e5 {[%clk 0:02:45]} 9. dxe5 {[%clk 0:02:43]}  dxe5 {[%clk 0:02:44]} 10. exf5 {[%clk 0:02:31]}  Bxf5 {[%clk 0:02:43]} 11. c3 {[%clk 0:02:14]}  e4 {[%clk 0:02:32]} 12. Qb3+ {[%clk 0:02:09]}  Kh8 {[%clk 0:02:10]} 13. Ng5 {[%clk 0:02:09]}  e3 {[%clk 0:01:58]} 14. Rxe3 {[%clk 0:02:02]}  Ng4 {[%clk 0:01:55]} 15. Nf7+ {[%clk 0:01:38]}  Rxf7 {[%clk 0:01:54]} 16. Qxf7 {[%clk 0:01:39]}  Nxe3 {[%clk 0:01:55]} 17. fxe3 {[%clk 0:01:40]}  Ne5 {[%clk 0:01:55]} 18. Qd5 {[%clk 0:01:37]}  Qxd5 {[%clk 0:01:49]} 19. Bxd5 {[%clk 0:01:37]}  c6 {[%clk 0:01:48]} 20. Bg2 {[%clk 0:01:34]}  Rd8 {[%clk 0:01:47]} 21. e4 {[%clk 0:01:34]}  Be6 {[%clk 0:01:46]} 22. Bf1 {[%clk 0:00:37]}  Bh6 {[%clk 0:00:46]} 23. Nb3 {[%clk 0:00:36]}  Bxc1 {[%clk 0:00:45]} 24. Rxc1 {[%clk 0:00:34]}  Bxb3 {[%clk 0:00:45]} 25. axb3 {[%clk 0:00:34]}  Rd2 {[%clk 0:00:46]} 26. Bg2 {[%clk 0:00:27]}  Rxb2 {[%clk 0:00:46]} 27. b4 {[%clk 0:00:28]}  Rd2 {[%clk 0:00:46]} 28. h3 {[%clk 0:00:23]}  Kg7 {[%clk 0:00:46]} 29. Ra1 {[%clk 0:00:16]}  a6 {[%clk 0:00:46]} 30. Ra5 {[%clk 0:00:17]}  Kf6 {[%clk 0:00:46]} 31. h4 {[%clk 0:00:16]}  Rc2 {[%clk 0:00:46]} 32. Rc5 {[%clk 0:00:14]}  Nd3 {[%clk 0:00:47]} 33. Rc4 {[%clk 0:00:10]}  Ke5 {[%clk 0:00:46]} 34. Rd4 {[%clk 0:00:08]}  Ne1 {[%clk 0:00:46]} 35. Bh1 {[%clk 0:00:06]}  Rxc3 {[%clk 0:00:40]} 36. Rd7 {[%clk 0:00:06]}  Rxg3+ {[%clk 0:00:40]} 37. Kf2 {[%clk 0:00:06]}  Rh3 {[%clk 0:00:40]} 38. Kg1 {[%clk 0:00:07]}  Rxh4 {[%clk 0:00:31]} 39. Rxb7 {[%clk 0:00:07]}  Nd3 {[%clk 0:00:32]} 40. Re7+ {[%clk 0:00:06]}  Kd4 {[%clk 0:00:31]} 41. Rd7+ {[%clk 0:00:06]}  Ke3 {[%clk 0:00:32]} 42. Re7 {[%clk 0:00:04]}  Rh5 {[%clk 0:00:32]} 43. Re6 {[%clk 0:00:03]}  Nxb4 {[%clk 0:00:29]} 44. e5 {[%clk 0:00:03]}  Kd4 {[%clk 0:00:28]} 45. Re7 {[%clk 0:00:01]}  Rxe5 {[%clk 0:00:26]} 46. Rb7 {[%clk 0:00:02]}  a5 {[%clk 0:00:25]} 47. Rxh7 {[%clk 0:00:03]}  Rg5+ {[%clk 0:00:22]} 48. Kf2 {[%clk 0:00:03]}  Nd3+ {[%clk 0:00:22]} 49. Ke2 {[%clk 0:00:02]}  Nf4+ {[%clk 0:00:19]} 50. Kf3 {[%clk 0:00:03]}  Nd5 {[%clk 0:00:20]} 51. Ra7 {[%clk 0:00:03]}  Nc3 {[%clk 0:00:19]} 52. Rd7+ {[%clk 0:00:03]}  Kc5 {[%clk 0:00:16]} 53. Kf4 {[%clk 0:00:03]}  Rf5+ {[%clk 0:00:15]} 54. Kg4 {[%clk 0:00:03]}  a4 {[%clk 0:00:14]} 55. Rc7 {[%clk 0:00:04]}  Rf6 {[%clk 0:00:15]} 56. Kg5 {[%clk 0:00:03]}  Rd6 {[%clk 0:00:14]} 57. Ra7 {[%clk 0:00:03]}  Kb4 {[%clk 0:00:13]} 58. Kf4 {[%clk 0:00:04]}  a3 {[%clk 0:00:14]} 59. Ke5 {[%clk 0:00:04]}  Rd1 {[%clk 0:00:12]} 60. Bxc6 {[%clk 0:00:04]}  a2 {[%clk 0:00:12]} 61. Rb7+ {[%clk 0:00:04]}  Kc5 {[%clk 0:00:12]} 62. Be4 {[%clk 0:00:03]}  a1=Q {[%clk 0:00:11]} 63. Rc7+ {[%clk 0:00:04]}  Kb6 {[%clk 0:00:11]} 64. Rb7+ {[%clk 0:00:04]}  Ka6 {[%clk 0:00:11]} 65. Rb8 {[%clk 0:00:05]}  Nxe4+ {[%clk 0:00:11]} 66. Kf4 {[%clk 0:00:05]}  Rf1+ {[%clk 0:00:10]} 67. Ke3 {[%clk 0:00:05]}  Qc3+ {[%clk 0:00:10]} 68. Ke2 {[%clk 0:00:04]}  Qd2+ {[%clk 0:00:10]} 69. Kxf1 {[%clk 0:00:04]}  Qf2# {[%clk 0:00:11]} 0-1


[Site "https://www.chess.com"]

[Event "Titled Tuesday Blitz May 10 Early 2022"]
[White "Vignesh, N R"]
[Black "Risteski, Emil"]
[WhiteFideId "25012215"]
[BlackFideId "15005267"]
[WhiteElo "2363"]
[BlackElo "2070"]
[Result "1/2-1/2"]
[Round "11"]
[TimeControl "180+1"]
[Date "2022.05.11"]
[WhiteClock "0:00:36"]
[BlackClock "0:00:15"]

1. e4 {[%clk 0:03:00]}  d6 {[%clk 0:02:59]} 2. d4 {[%clk 0:03:00]}  Nf6 {[%clk 0:03:00]} 3. Nc3 {[%clk 0:03:01]}  e5 {[%clk 0:03:01]} 4. Nf3 {[%clk 0:02:59]}  Nbd7 {[%clk 0:03:00]} 5. Bc4 {[%clk 0:02:58]}  Be7 {[%clk 0:03:00]} 6. O-O {[%clk 0:02:58]}  O-O {[%clk 0:03:01]} 7. a4 {[%clk 0:02:57]}  a5 {[%clk 0:03:01]} 8. h3 {[%clk 0:02:56]}  c6 {[%clk 0:03:01]} 9. Re1 {[%clk 0:02:56]}  Nb6 {[%clk 0:02:57]} 10. Bb3 {[%clk 0:02:56]}  Nfd7 {[%clk 0:02:57]} 11. Be3 {[%clk 0:02:55]}  exd4 {[%clk 0:02:57]} 12. Bxd4 {[%clk 0:02:51]}  Nc5 {[%clk 0:02:57]} 13. Bxc5 {[%clk 0:02:48]}  dxc5 {[%clk 0:02:58]} 14. Qe2 {[%clk 0:02:49]}  Qd6 {[%clk 0:02:58]} 15. Rad1 {[%clk 0:02:46]}  Qg6 {[%clk 0:02:57]} 16. Ne5 {[%clk 0:02:46]}  Qf6 {[%clk 0:02:53]} 17. Ng4 {[%clk 0:02:40]}  Qg5 {[%clk 0:02:53]} 18. Qf3 {[%clk 0:02:34]}  h5 {[%clk 0:02:49]} 19. Ne3 {[%clk 0:02:34]}  Bf6 {[%clk 0:02:36]} 20. e5 {[%clk 0:02:29]}  Bxe5 {[%clk 0:02:32]} 21. Ne4 {[%clk 0:02:29]}  Qf4 {[%clk 0:02:28]} 22. Qxf4 {[%clk 0:02:28]}  Bxf4 {[%clk 0:02:29]} 23. Nxc5 {[%clk 0:02:28]}  g6 {[%clk 0:02:10]} 24. h4 {[%clk 0:02:25]}  Kg7 {[%clk 0:02:09]} 25. g3 {[%clk 0:02:25]}  Bc7 {[%clk 0:02:08]} 26. c3 {[%clk 0:02:24]}  Rd8 {[%clk 0:02:05]} 27. Rxd8 {[%clk 0:02:18]}  Bxd8 {[%clk 0:02:04]} 28. Nc2 {[%clk 0:02:19]}  Kf8 {[%clk 0:01:51]} 29. Nd4 {[%clk 0:02:18]}  Be7 {[%clk 0:01:50]} 30. Nd3 {[%clk 0:02:13]}  c5 {[%clk 0:01:44]} 31. Rxe7 {[%clk 0:01:59]}  Kxe7 {[%clk 0:01:41]} 32. Nxc5 {[%clk 0:01:59]}  Nd7 {[%clk 0:01:35]} 33. Nd3 {[%clk 0:01:54]}  Ra6 {[%clk 0:01:32]} 34. Nf4 {[%clk 0:01:52]}  Nf6 {[%clk 0:01:30]} 35. Kg2 {[%clk 0:01:49]}  Rd6 {[%clk 0:01:26]} 36. Bc4 {[%clk 0:01:47]}  b6 {[%clk 0:01:20]} 37. Kf3 {[%clk 0:01:46]}  Bb7+ {[%clk 0:01:20]} 38. Ke2 {[%clk 0:01:46]}  Nd5 {[%clk 0:01:15]} 39. Nd3 {[%clk 0:01:33]}  Kf6 {[%clk 0:01:07]} 40. Kd2 {[%clk 0:01:30]}  Ne7 {[%clk 0:00:57]} 41. Ke3 {[%clk 0:01:29]}  Rd8 {[%clk 0:00:53]} 42. f4 {[%clk 0:01:28]}  Bd5 {[%clk 0:00:48]} 43. Bb5 {[%clk 0:01:27]}  Nf5+ {[%clk 0:00:47]} 44. Nxf5 {[%clk 0:01:26]}  Kxf5 {[%clk 0:00:47]} 45. Ne5 {[%clk 0:01:27]}  f6 {[%clk 0:00:46]} 46. Bd3+ {[%clk 0:01:17]}  Ke6 {[%clk 0:00:38]} 47. Nxg6 {[%clk 0:01:16]}  Bb3 {[%clk 0:00:26]} 48. f5+ {[%clk 0:01:13]}  Kd6 {[%clk 0:00:23]} 49. Nf4 {[%clk 0:01:13]}  Rh8 {[%clk 0:00:20]} 50. Be2 {[%clk 0:01:12]}  Bf7 {[%clk 0:00:19]} 51. Kd4 {[%clk 0:01:12]}  Rh6 {[%clk 0:00:18]} 52. b4 {[%clk 0:01:11]}  axb4 {[%clk 0:00:19]} 53. cxb4 {[%clk 0:01:11]}  Rh8 {[%clk 0:00:20]} 54. a5 {[%clk 0:01:11]}  bxa5 {[%clk 0:00:21]} 55. bxa5 {[%clk 0:01:12]}  Ra8 {[%clk 0:00:21]} 56. a6 {[%clk 0:01:11]}  Be8 {[%clk 0:00:20]} 57. Bxh5 {[%clk 0:01:10]}  Bb5 {[%clk 0:00:18]} 58. Nd5 {[%clk 0:01:04]}  Rxa6 {[%clk 0:00:17]} 59. Nxf6 {[%clk 0:01:04]}  Ra4+ {[%clk 0:00:17]} 60. Ke3 {[%clk 0:01:04]}  Ke5 {[%clk 0:00:18]} 61. Ng4+ {[%clk 0:01:01]}  Kxf5 {[%clk 0:00:18]} 62. Nh6+ {[%clk 0:00:59]}  Ke5 {[%clk 0:00:17]} 63. Nf7+ {[%clk 0:00:57]}  Kf6 {[%clk 0:00:17]} 64. Ng5 {[%clk 0:00:56]}  Ra3+ {[%clk 0:00:18]} 65. Kf4 {[%clk 0:00:56]}  Ra4+ {[%clk 0:00:17]} 66. Ne4+ {[%clk 0:00:56]}  Ke7 {[%clk 0:00:16]} 67. g4 {[%clk 0:00:55]}  Bd3 {[%clk 0:00:14]} 68. Bg6 {[%clk 0:00:55]}  Kf8 {[%clk 0:00:13]} 69. h5 {[%clk 0:00:54]}  Kg7 {[%clk 0:00:12]} 70. g5 {[%clk 0:00:53]}  Bb1 {[%clk 0:00:12]} 71. Bf5 {[%clk 0:00:52]}  Bxe4 {[%clk 0:00:12]} 72. Bxe4 {[%clk 0:00:53]}  Rb4 {[%clk 0:00:12]} 73. h6+ {[%clk 0:00:53]}  Kf7 {[%clk 0:00:11]} 74. Ke5 {[%clk 0:00:51]}  Rb5+ {[%clk 0:00:12]} 75. Kf4 {[%clk 0:00:50]}  Rc5 {[%clk 0:00:11]} 76. g6+ {[%clk 0:00:49]}  Kf6 {[%clk 0:00:10]} 77. g7 {[%clk 0:00:50]}  Rg5 {[%clk 0:00:10]} 78. h7 {[%clk 0:00:42]}  Kxg7 {[%clk 0:00:09]} 79. Kxg5 {[%clk 0:00:41]}  Kh8 {[%clk 0:00:10]} 80. Bg6 {[%clk 0:00:39]}  Kg7 {[%clk 0:00:11]} 81. Kf5 {[%clk 0:00:36]}  Kh8 {[%clk 0:00:12]} 82. Ke6 {[%clk 0:00:36]}  Kg7 {[%clk 0:00:13]} 83. Ke7 {[%clk 0:00:36]}  Kh8 {[%clk 0:00:14]} 84. Bf5 {[%clk 0:00:36]}  Kg7 {[%clk 0:00:14]} 85. Be4 {[%clk 0:00:37]}  Kh8 {[%clk 0:00:15]} 86. Kf8 {[%clk 0:00:36]} 1/2-1/2


[Site "https://www.chess.com"]

[Event "Titled Tuesday Blitz May 10 Early 2022"]
[White "Visakh N R"]
[Black "Maximov, Dmitry"]
[WhiteFideId "25012223"]
[BlackFideId "14105659"]
[WhiteElo "2448"]
[BlackElo "2494"]
[Result "1-0"]
[Round "11"]
[TimeControl "180+1"]
[Date "2022.05.10"]
[WhiteClock "0:00:36"]
[BlackClock "0:00:04"]

1. e4 {[%clk 0:03:00]}  c5 {[%clk 0:02:59]} 2. Nf3 {[%clk 0:03:00]}  d6 {[%clk 0:03:00]} 3. Nc3 {[%clk 0:02:58]}  Nc6 {[%clk 0:02:59]} 4. Bb5 {[%clk 0:02:56]}  Bd7 {[%clk 0:02:58]} 5. O-O {[%clk 0:02:56]}  a6 {[%clk 0:02:58]} 6. Bxc6 {[%clk 0:02:55]}  Bxc6 {[%clk 0:02:58]} 7. d4 {[%clk 0:02:55]}  cxd4 {[%clk 0:02:59]} 8. Nxd4 {[%clk 0:02:56]}  Rc8 {[%clk 0:02:59]} 9. a4 {[%clk 0:02:55]}  e6 {[%clk 0:02:57]} 10. Re1 {[%clk 0:02:55]}  Bd7 {[%clk 0:02:55]} 11. a5 {[%clk 0:02:51]}  Nf6 {[%clk 0:02:53]} 12. Be3 {[%clk 0:02:46]}  h5 {[%clk 0:02:40]} 13. h3 {[%clk 0:02:43]}  h4 {[%clk 0:02:40]} 14. Nf5 {[%clk 0:02:32]}  Qc7 {[%clk 0:02:29]} 15. Bb6 {[%clk 0:02:30]}  Qb8 {[%clk 0:02:29]} 16. Nd5 {[%clk 0:02:24]}  Bc6 {[%clk 0:02:19]} 17. Bd4 {[%clk 0:02:08]}  Nxd5 {[%clk 0:02:09]} 18. exd5 {[%clk 0:02:08]}  Bxd5 {[%clk 0:02:09]} 19. Bxg7 {[%clk 0:01:33]}  Bxg7 {[%clk 0:02:01]} 20. Qxd5 {[%clk 0:01:34]}  Kd7 {[%clk 0:01:45]} 21. Qf3 {[%clk 0:01:26]}  exf5 {[%clk 0:01:09]} 22. Qxf5+ {[%clk 0:01:27]}  Kc6 {[%clk 0:01:09]} 23. Re7 {[%clk 0:01:27]}  Rc7 {[%clk 0:00:50]} 24. Qe4+ {[%clk 0:01:14]}  d5 {[%clk 0:00:33]} 25. Re6+ {[%clk 0:00:49]}  Kd7 {[%clk 0:00:34]} 26. Qxd5+ {[%clk 0:00:46]}  Kc8 {[%clk 0:00:34]} 27. Rd6 {[%clk 0:00:45]}  Re7 {[%clk 0:00:18]} 28. Qf5+ {[%clk 0:00:42]}  Re6 {[%clk 0:00:19]} 29. Rxe6 {[%clk 0:00:42]}  fxe6 {[%clk 0:00:14]} 30. Qxe6+ {[%clk 0:00:43]}  Kc7 {[%clk 0:00:15]} 31. Qf7+ {[%clk 0:00:43]}  Kc6 {[%clk 0:00:15]} 32. Qxg7 {[%clk 0:00:43]}  Rg8 {[%clk 0:00:14]} 33. Qc3+ {[%clk 0:00:40]}  Kb5 {[%clk 0:00:13]} 34. Ra3 {[%clk 0:00:37]}  Rxg2+ {[%clk 0:00:03]} 35. Kxg2 {[%clk 0:00:36]}  Qg8+ {[%clk 0:00:04]} 36. Kf1 {[%clk 0:00:36]} 1-0


[Site "https://www.chess.com"]